fUST/lending_fUST_20240630
["ID","MTS","AMOUNT","RATE_DAILY","PERIOD"]
[330762099,1719760241116,-353.80395665,0.00015093,2]
[330762101,1719760241126,-2496.55,0.00015093,2]
[330762103,1719760241135,-453.7514208,0.00015093,2]
[330762105,1719760241144,-500.0,0.00015093,2]
[330762107,1719760241154,-1406.06,0.00015093,2]
[330762110,1719760241164,-1562.5,0.00015093,2]
[330762111,1719760241173,-500.0,0.00015093,2]
[330762114,1719760241183,-504.25480397,0.00015093,2]
[330762115,1719760241192,-537.49596528,0.00015093,2]
[330762117,1719760241201,-151.0,0.00015093,2]
[330762119,1719760241210,-500.0,0.00015093,2]
[330762121,1719760241219,-295.93351,0.00015093,2]
[330762123,1719760241229,-500.0,0.00015093,2]
[330762125,1719760241238,-207.241833,0.00015093,2]
[330762127,1719760241248,-152.834834,0.00015093,2]
[330762129,1719760241257,-720.53,0.00015093,2]
[330762131,1719760241266,-500.0,0.00015093,2]
[330762133,1719760241275,-633.02,0.00015093,2]
[330762135,1719760241284,-523.21322067,0.00015093,2]
[330762137,1719760241293,-208.584817,0.00015093,2]
[330762139,1719760241303,-628.18,0.00015093,2]
[330762141,1719760241312,-855.48,0.00015093,2]
[330762143,1719760241321,-500.0,0.00015093,2]
[330762145,1719760241330,-163166.76346952,0.00015094,2]
[330762147,1719760241339,-2530.97427045,0.00015094,2]
[330762149,1719760241350,-151.0,0.00015094,2]
[330762151,1719760241360,-151.0,0.00015094,2]
[330762153,1719760241369,-151.0,0.00015094,2]
[330762155,1719760241378,-158.012195,0.00015094,2]
[330762157,1719760241387,-155.800625,0.00015094,2]
[330762159,1719760241397,-215.600491,0.00015094,2]
[330762161,1719760241407,-215.600491,0.00015094,2]
[330762163,1719760241416,-250.2275,0.00015094,2]
[330762165,1719760241426,-250.2275,0.00015094,2]
[330762167,1719760241435,-160.005492,0.00015094,2]
[330762169,1719760241444,-160.005492,0.00015094,2]
[330762171,1719760241453,-169.633706,0.00015094,2]
[330762173,1719760241462,-276.786709,0.00015094,2]
[330762175,1719760241472,-276.786709,0.00015094,2]
[330762177,1719760241481,-197.00063034,0.000151,2]
[330762178,1719760241490,-500.0,0.00015293,2]
[330762180,1719760241499,-3604.21,0.00015293,2]
[330762182,1719760241508,-188.09167626,0.00015294,2]
[330762184,1719760241518,-3604.21,0.00015294,2]
[330762186,1719760241527,-3604.21,0.00015294,2]
[330762188,1719760241540,-3604.21,0.00015294,2]
[330762190,1719760241550,-3604.21,0.00015294,2]
[330762192,1719760241560,-3604.21,0.00015294,2]
[330762195,1719760241570,-3604.21,0.00015294,2]
[330762196,1719760241579,-3604.21,0.00015294,2]
[330762198,1719760241588,-2738.43,0.00015295,2]
[330762200,1719760241598,-500.0,0.00015295,2]
[330762202,1719760241607,-500.0,0.00015295,2]
[330762204,1719760241620,-500.0,0.00015295,2]
[330762206,1719760241630,-509.77482491,0.00015295,2]
[330762208,1719760241639,-500.0,0.00015295,2]
[330762211,1719760241649,-500.0,0.00015295,2]
[330762212,1719760241660,-305.09834405,0.00015295,2]
[330762214,1719760241669,-500.0,0.00015295,2]
[330762216,1719760241684,-500.0,0.00015295,2]
[330762218,1719760241694,-500.0,0.00015295,2]
[330762220,1719760241704,-1512.02,0.00015295,2]
[330762222,1719760241713,-555.92,0.00015295,2]
[330762224,1719760241722,-151.0,0.00015295,2]
[330762226,1719760241732,-151.0,0.00015295,2]
[330762228,1719760241742,-151.0,0.00015295,2]
[330762230,1719760241751,-151.0,0.00015295,2]
[330762232,1719760241761,-151.0,0.00015295,2]
[330762234,1719760241771,-1512.82,0.00015295,2]
[330762236,1719760241781,-151.0,0.00015295,2]
[330762238,1719760241790,-151.0,0.00015295,2]
[330762240,1719760241800,-151.0,0.00015295,2]
[330762242,1719760241809,-151.0,0.00015295,2]
[330762244,1719760241818,-173.099065,0.00015295,2]
[330762246,1719760241827,-1256.43,0.00015295,2]
[330762248,1719760241837,-500.0,0.00015295,2]
[330762250,1719760241846,-518.62875156,0.00015295,2]
[330762252,1719760241855,-500.0,0.00015295,2]
[330762254,1719760241865,-159.158324,0.00015295,2]
[330762256,1719760241875,-500.0,0.00015295,2]
[330762258,1719760241884,-587.55,0.00015295,2]
[330762260,1719760241894,-500.15,0.00015295,2]
[330762262,1719760241904,-754.69,0.00015295,2]
[330762264,1719760241914,-635.80447038,0.00015295,2]
[330762266,1719760241924,-963.57,0.00015295,2]
[330762268,1719760241934,-153.907517,0.00015295,2]
[330762270,1719760241944,-500.0,0.00015295,2]
[330762272,1719760241953,-179.015247,0.00015295,2]
[330762274,1719760241963,-2964.06,0.00015295,2]
[330762276,1719760241972,-151.0,0.00015295,2]
[330762278,1719760241983,-151.0,0.00015295,2]
[330762280,1719760241992,-151.0,0.00015295,2]
[330762282,1719760242002,-151.0,0.00015295,2]
[330762284,1719760242011,-151.0,0.00015295,2]
[330762286,1719760242020,-235.822918,0.00015295,2]
[330762288,1719760242029,-627.36491239,0.00015295,2]
[330762290,1719760242039,-500.0,0.00015295,2]
[330762291,1719760242048,-198.243534,0.00015295,2]
[330762293,1719760242058,-198.243534,0.00015295,2]
[330762295,1719760242068,-198.243534,0.00015295,2]
[330762297,1719760242077,-19041.74,0.00015295,2]
[330762299,1719760242087,-198.243534,0.00015295,2]
[330762301,1719760242096,-198.243534,0.00015295,2]
[330762303,1719760242105,-198.243534,0.00015295,2]
[330762305,1719760242114,-500.0,0.00015295,2]
[330762307,1719760242123,-500.0,0.00015295,2]
[330762309,1719760242132,-500.0,0.00015295,2]
[330762311,1719760242141,-500.0,0.00015295,2]
[330762313,1719760242151,-1488.78,0.00015295,2]
[330762315,1719760242164,-500.0,0.00015295,2]
[330762317,1719760242174,-600.27,0.00015295,2]
[330762319,1719760242183,-151.0,0.00015295,2]
[330762321,1719760242192,-151.0,0.00015295,2]
[330762323,1719760242201,-237.730595,0.00015295,2]
[330762325,1719760242211,-151.0,0.00015295,2]
[330762326,1719760242220,-151.0,0.00015295,2]
[330762328,1719760242229,-1075.04,0.00015295,2]
[330762330,1719760242238,-3478.08,0.00015295,2]
[330762332,1719760242247,-215.600491,0.00015295,2]
[330762334,1719760242257,-2143.19,0.00015295,2]
[330762336,1719760242266,-215.600491,0.00015295,2]
[330762338,1719760242276,-215.600491,0.00015295,2]
[330762340,1719760242285,-215.600491,0.00015295,2]
[330762342,1719760242295,-500.0,0.00015295,2]
[330762354,1719760242397,-500.0,0.00015295,2]
[330762356,1719760242409,-250.2275,0.00015295,2]
[330762358,1719760242418,-250.2275,0.00015295,2]
[330762360,1719760242428,-864.17,0.00015295,2]
[330762362,1719760242437,-250.2275,0.00015295,2]
[330762364,1719760242446,-250.2275,0.00015295,2]
[330762366,1719760242456,-500.0,0.00015295,2]
[330762368,1719760242465,-2126.12432834,0.00015295,2]
[330762417,1719760242935,-500.0,0.00015093,2]
[330762419,1719760242944,-467.72567166,0.00015295,2]
[330762421,1719760242954,-500.0,0.00015295,2]
[330762423,1719760242963,-160.005492,0.00015295,2]
[330762425,1719760242972,-160.005492,0.00015295,2]
[330762427,1719760242981,-160.005492,0.00015295,2]
[330762429,1719760242990,-160.005492,0.00015295,2]
[330762431,1719760242999,-500.0,0.00015295,2]
[330762433,1719760243008,-1998.02,0.00015295,2]
[330762435,1719760243017,-500.0,0.00015295,2]
[330762437,1719760243027,-500.0,0.00015295,2]
[330762439,1719760243036,-576.24,0.00015295,2]
[330762441,1719760243045,-1188.90689317,0.00015295,2]
[330762443,1719760243057,-207.83310683,0.00015295,2]
[330762445,1719760243066,-276.786709,0.00015295,2]
[330762447,1719760243075,-276.786709,0.00015295,2]
[330762449,1719760243084,-500.0,0.00015295,2]
[330762451,1719760243094,-500.0,0.00015295,2]
[330762453,1719760243104,-3604.21,0.00015295,2]
[330762455,1719760243113,-500.0,0.00015295,2]
[330762457,1719760243123,-3604.21,0.00015295,2]
[330762459,1719760243132,-1779.49,0.00015295,2]
[330762461,1719760243141,-500.0,0.00015295,2]
[330762463,1719760243150,-544.96,0.00015295,2]
[330762465,1719760243161,-1463.29,0.00015295,2]
[330762468,1719760243171,-2509.51,0.00015295,2]
[330762470,1719760243180,-1440.51,0.00015295,2]
[330762474,1719760243189,-2429.21,0.00015295,2]
[330762477,1719760243198,-628.58,0.00015295,2]
[330762480,1719760243207,-757.84,0.00015296,2]
[330762483,1719760243216,-500.0,0.00015296,2]
[330762486,1719760243225,-500.0,0.00015296,2]
[330762488,1719760243234,-514.89319093,0.00015296,2]
[330762491,1719760243243,-500.0,0.00015296,2]
[330762494,1719760243252,-500.0,0.00015296,2]
[330762497,1719760243261,-500.0,0.00015296,2]
[330762499,1719760243271,-500.0,0.00015296,2]
[330762502,1719760243281,-871.82,0.00015296,2]
[330762504,1719760243291,-1587.36,0.00015296,2]
[330762505,1719760243300,-585.12,0.00015296,2]
[330762507,1719760243310,-511.13,0.00015296,2]
[330762509,1719760243320,-500.0,0.00015296,2]
[330762511,1719760243328,-188.18270437,0.00015296,2]
[330762513,1719760243337,-500.0,0.00015296,2]
[330762515,1719760243347,-507.09445584,0.00015296,2]
[330762517,1719760243356,-500.0,0.00015296,2]
[330762519,1719760243365,-500.0,0.00015296,2]
[330762521,1719760243375,-1023.61,0.00015296,2]
[330762523,1719760243384,-500.0,0.00015296,2]
[330762525,1719760243394,-500.0,0.00015296,2]
[330762528,1719760243405,-500.0,0.00015296,2]
[330762529,1719760243414,-500.0,0.00015296,2]
[330762531,1719760243423,-500.0,0.00015296,2]
[330762533,1719760243432,-500.0,0.00015296,2]
[330762535,1719760243441,-500.0,0.00015296,2]
[330762536,1719760243450,-500.0,0.00015296,2]
[330762538,1719760243459,-581.65,0.00015296,2]
[330762540,1719760243469,-500.0,0.00015296,2]
[330762543,1719760243478,-500.0,0.00015296,2]
[330762546,1719760243487,-500.0,0.00015296,2]
[330762548,1719760243496,-500.09,0.00015296,2]
[330762551,1719760243505,-500.0,0.00015296,2]
[330762553,1719760243516,-500.0,0.00015296,2]
[330762554,1719760243525,-501.58207022,0.00015296,2]
[330762556,1719760243536,-500.0,0.00015296,2]
[330762558,1719760243548,-520.98,0.00015296,2]
[330762560,1719760243557,-500.0,0.00015296,2]
[330762562,1719760243566,-500.0,0.00015296,2]
[330762564,1719760243576,-500.0,0.00015296,2]
[330762565,1719760243586,-500.0,0.00015296,2]
[330762566,1719760243595,-500.0,0.00015296,2]
[330762567,1719760243606,-500.0,0.00015296,2]
[330762568,1719760243616,-1382.61,0.00015296,2]
[330762569,1719760243628,-513.17311613,0.00015296,2]
[330762570,1719760243637,-500.0,0.00015296,2]
[330762571,1719760243647,-500.0,0.00015296,2]
[330762572,1719760243658,-500.0,0.00015296,2]
[330762574,1719760243668,-537.90911443,0.00015296,2]
[330762576,1719760243678,-500.0,0.00015296,2]
[330762578,1719760243688,-500.09932432,0.00015296,2]
[330762580,1719760243697,-500.0,0.00015296,2]
[330762582,1719760243706,-500.0,0.00015296,2]
[330762583,1719760243716,-510.37990973,0.00015296,2]
[330762584,1719760243725,-500.0,0.00015296,2]
[330762585,1719760243734,-500.0,0.00015296,2]
[330762586,1719760243743,-508.45257702,0.00015296,2]
[330762587,1719760243752,-549.01,0.00015296,2]
[330762588,1719760243762,-500.0,0.00015296,2]
[330762590,1719760243771,-612.6,0.00015296,2]
[330762592,1719760243780,-803.02,0.00015296,2]
[330762593,1719760243789,-500.0,0.00015296,2]
[330762594,1719760243799,-290.16226717,0.00015296,2]
[330762595,1719760243807,-262.24930435,0.00015296,2]
[330762596,1719760243817,-518.2,0.00015296,2]
[330762598,1719760243826,-500.0,0.00015296,2]
[330762602,1719760243940,-500.0,0.00015296,2]
[330762603,1719760243950,-500.0,0.00015296,2]
[330762604,1719760243959,-505.11533947,0.00015296,2]
[330762605,1719760243969,-1696.79,0.00015296,2]
[330762606,1719760243978,-500.0,0.00015296,2]
[330762607,1719760243987,-562.37,0.00015296,2]
[330762608,1719760243997,-500.0,0.00015296,2]
[330762609,1719760244006,-500.0,0.00015296,2]
[330762610,1719760244016,-500.0,0.00015296,2]
[330762611,1719760244026,-500.0,0.00015296,2]
[330762612,1719760244037,-500.0,0.00015296,2]
[330762613,1719760244047,-500.0,0.00015296,2]
[330762614,1719760244058,-500.0,0.00015296,2]
[330762615,1719760244068,-500.0,0.00015296,2]
[330762616,1719760244077,-506.58658053,0.00015296,2]
[330762617,1719760244087,-500.0,0.00015296,2]
[330762618,1719760244096,-500.0,0.00015296,2]
[330762619,1719760244106,-500.0,0.00015296,2]
[330762620,1719760244116,-500.0,0.00015296,2]
[330762621,1719760244126,-500.0,0.00015296,2]
[330762622,1719760244136,-507.62001724,0.00015296,2]
[330762623,1719760244146,-649.4,0.00015296,2]
[330762624,1719760244156,-806.39,0.00015296,2]
[330762625,1719760244166,-500.0,0.00015296,2]
[330762626,1719760244175,-500.0,0.00015296,2]
[330762627,1719760244185,-234.00245064,0.00015296,2]
[330762628,1719760244194,-703.9,0.00015296,2]
[330762629,1719760244204,-500.0,0.00015296,2]
[330762630,1719760244213,-500.0,0.00015296,2]
[330762631,1719760244222,-500.0,0.00015296,2]
[330762632,1719760244231,-259.7614997,0.00015296,2]
[330762633,1719760244240,-500.0,0.00015296,2]
[330762634,1719760244250,-500.0,0.00015296,2]
[330762635,1719760244261,-500.0,0.00015296,2]
[330762636,1719760244271,-502.71155641,0.00015296,2]
[330762637,1719760244281,-500.0,0.00015296,2]
[330762638,1719760244293,-500.0,0.00015296,2]
[330762639,1719760244304,-500.0,0.00015296,2]
[330762640,1719760244315,-494.74240555,0.00015296,2]
[330762641,1719760244325,-900.33,0.00015296,2]
[330762642,1719760244335,-500.0,0.00015296,2]
[330762643,1719760244345,-500.0,0.00015296,2]
[330762644,1719760244354,-500.0,0.00015296,2]
[330762645,1719760244364,-504.63061151,0.00015296,2]
[330762646,1719760244374,-500.0,0.00015296,2]
[330762647,1719760244383,-500.0,0.00015296,2]
[330762648,1719760244395,-500.0,0.00015296,2]
[330762649,1719760244406,-509.92266804,0.00015296,2]
[330762650,1719760244417,-32.5543861,0.00015296,2]
[330762673,1719760246900,-151.0,0.00015093,2]
[330762674,1719760246911,-151.0,0.00015093,2]
[330762675,1719760246920,-151.0,0.00015093,2]
[330762676,1719760246930,-2624.33,0.00015093,2]
[330762677,1719760246940,-151.0,0.00015094,2]
[330762678,1719760246950,-151.0,0.00015295,2]
[330762679,1719760246960,-649.54,0.00015295,2]
[330762680,1719760246971,-467.4456139,0.00015296,2]
[330762681,1719760246981,-500.0,0.00015296,2]
[330762682,1719760246991,-500.0,0.00015296,2]
[330762683,1719760247000,-151.0,0.00015296,2]
[330762684,1719760247010,-151.0,0.00015296,2]
[330762685,1719760247019,-1277.19,0.00015296,2]
[330762686,1719760247030,-500.0,0.00015296,2]
[330762687,1719760247039,-500.0,0.00015296,2]
[330762688,1719760247050,-1682.43,0.00015296,2]
[330762689,1719760247061,-500.0,0.00015296,2]
[330762690,1719760247071,-198.243534,0.00015296,2]
[330762691,1719760247080,-198.243534,0.00015296,2]
[330762692,1719760247090,-198.243534,0.00015296,2]
[330762693,1719760247099,-198.243534,0.00015296,2]
[330762694,1719760247108,-642.22,0.00015296,2]
[330762695,1719760247117,-500.0,0.00015296,2]
[330762696,1719760247127,-500.0,0.00015296,2]
[330762697,1719760247137,-500.0,0.00015296,2]
[330762698,1719760247245,-500.0,0.00015296,2]
[330762699,1719760247255,-500.0,0.00015296,2]
[330762700,1719760247265,-962.72,0.00015296,2]
[330762701,1719760247275,-151.0,0.00015296,2]
[330762702,1719760247284,-151.0,0.00015296,2]
[330762703,1719760247294,-500.0,0.00015296,2]
[330762704,1719760247303,-151.0,0.00015296,2]
[330762705,1719760247313,-151.0,0.00015296,2]
[330762706,1719760247322,-605.53090476,0.00015296,2]
[330762707,1719760247331,-568.43,0.00015296,2]
[330762708,1719760247341,-215.600491,0.00015296,2]
[330762709,1719760247350,-215.600491,0.00015296,2]
[330762710,1719760247360,-215.600491,0.00015296,2]
[330762711,1719760247369,-215.600491,0.00015296,2]
[330762712,1719760247379,-250.2275,0.00015296,2]
[330762713,1719760247388,-250.2275,0.00015296,2]
[330762714,1719760247398,-250.2275,0.00015296,2]
[330762715,1719760247409,-250.2275,0.00015296,2]
[330762716,1719760247418,-500.0,0.00015296,2]
[330762717,1719760247426,-160.005492,0.00015296,2]
[330762718,1719760247436,-160.005492,0.00015296,2]
[330762719,1719760247445,-160.005492,0.00015296,2]
[330762720,1719760247455,-160.005492,0.00015296,2]
[330762721,1719760247465,-276.786709,0.00015296,2]
[330762722,1719760247474,-276.786709,0.00015296,2]
[330762723,1719760247484,-276.786709,0.00015296,2]
[330762724,1719760247493,-276.786709,0.00015296,2]
[330762725,1719760247503,-500.0,0.00015296,2]
[330762726,1719760247514,-3604.21,0.00015296,2]
[330762727,1719760247523,-554.93,0.00015296,2]
[330762728,1719760247532,-151.0,0.00015296,2]
[330762729,1719760247547,-501.12905021,0.00015297,2]
[330762730,1719760247558,-500.0,0.00015297,2]
[330762731,1719760247567,-520.88959233,0.00015297,2]
[330762732,1719760247577,-500.0,0.00015297,2]
[330762733,1719760247587,-835.69,0.00015297,2]
[330762734,1719760247596,-610.51,0.00015297,2]
[330762735,1719760247606,-500.0,0.00015297,2]
[330762736,1719760247616,-500.0,0.00015297,2]
[330762737,1719760247629,-645.19,0.00015297,2]
[330762738,1719760247640,-151.0,0.00015297,2]
[330762739,1719760247649,-273.070084,0.00015297,2]
[330762740,1719760247659,-215.600491,0.00015297,2]
[330762741,1719760247668,-215.600491,0.00015297,2]
[330762742,1719760247679,-250.2275,0.00015297,2]
[330762743,1719760247689,-250.2275,0.00015297,2]
[330762744,1719760247699,-276.786709,0.00015297,2]
[330762745,1719760247709,-276.786709,0.00015297,2]
[330762746,1719760247718,-3604.21,0.00015297,2]
[330762747,1719760247728,-151.0,0.00015297,2]
[330762748,1719760247737,-500.0,0.00015298,2]
[330762749,1719760247747,-3604.21,0.00015298,2]
[330762750,1719760247757,-500.0,0.00015298,2]
[330762751,1719760247767,-21203.14973107,0.00015299,2]
[330762752,1719760247781,-608.7,0.00015299,2]
[330762753,1719760247793,-722.12026893,0.00015299,2]
[330762754,1719760247804,-780.46,0.00015299,2]
[330762755,1719760247813,-399.57030768,0.00015299,2]
[330762756,1719760247826,-100.42969232,0.00015299,2]
[330762757,1719760247836,-808.28,0.00015299,2]
[330762758,1719760247847,-151.0,0.00015299,2]
[330762759,1719760247857,-198.243534,0.00015299,2]
[330762760,1719760247867,-140.62262467,0.00015299,2]
[330762761,1719760286752,6654.93654929,0.00014989,2]
[330762762,1719760297099,24900.0,0.00014093,2]
[330762765,1719760319950,2000.0,0.00014993,2]
[330762769,1719760337733,412.30717912,0.00014999,2]
[330762776,1719760389059,3000.0,0.00014093,2]
[330762777,1719760397423,1103.47973038,0.00015,2]
[330762779,1719760403181,200.68000754,0.00014999,2]
[330762780,1719760436499,841.777127,0.00014093,2]
[330762787,1719760467473,390.73465136,0.0001499,2]
[330762790,1719760489241,412.30717912,0.00014999,2]
[330762792,1719760516485,250.0,0.00014092,2]
[330762793,1719760638418,412.30717912,0.00014999,2]
[330762794,1719760677974,858.55599375,0.0001499,2]
[330762795,1719760680000,858.55599372,0.00014991,2]
[330762796,1719760682006,858.55599372,0.00014992,2]
[330762797,1719760684023,858.55599372,0.00014992,2]
[330762798,1719760686000,858.55599372,0.00014993,2]
[330762800,1719760753813,341.89281994,0.00014989,2]
[330762801,1719760766385,155063.12442631,0.00014988,2]
[330762802,1719760766414,8103.63904321,0.00014988,2]
[330762805,1719760792281,492.23621008,0.00014999,2]
[330762807,1719760820819,1054.80137383,0.00014999,2]
[330762809,1719760878297,282.93616103,0.00014999,2]
[330762811,1719760942322,5286.34479944,0.00014841,2]
[330762812,1719760953112,154.83742071,0.00014999,2]
[330762814,1719760993759,197.00063034,0.00015,2]
[330762815,1719761001755,420.888564,0.00014089,2]
[330762817,1719761022617,565.90871239,0.00014999,2]
[330762818,1719761028411,197.00063032,0.00015,2]
[330762819,1719761033383,299.15621743,0.00014988,2]
[330762820,1719761058410,197.00063032,0.00015,2]
[330762821,1719761092120,158.39310864,0.00014999,2]
[330762822,1719761105536,309.6439095,0.00015,2]
[330762824,1719761176969,500.0,0.00015,2]
[330762825,1719761181490,500.0,0.000145,2]
[330762826,1719761211463,1552.83,0.00024,60]
[330762827,1719761305417,155.63,0.00010959,2]
[330762828,1719761313840,261.76169026,0.00014987,2]
[330762864,1719761432861,-300.0,0.00015085,2]
[330762866,1719761432871,-300.0,0.00015085,2]
[330762867,1719761432881,-3973.24,0.00015086,2]
[330762868,1719761432890,-500.0,0.00015086,2]
[330762869,1719761432902,-1228.23,0.00015086,2]
[330762870,1719761432913,-3293.48,0.00015086,2]
[330762871,1719761432922,-500.0,0.00015086,2]
[330762872,1719761432931,-16325.10781619,0.00015086,2]
[330762891,1719761438923,-15297.08218381,0.00015086,2]
[330762893,1719761438934,-542.63,0.00015086,2]
[330762895,1719761438943,-4216.92,0.00015086,2]
[330762896,1719761438954,-500.0,0.00015086,2]
[330762897,1719761438964,-7632.24,0.00015087,2]
[330762898,1719761438973,-3186.23,0.00015087,2]
[330762899,1719761438984,-1390.95,0.00015087,2]
[330762901,1719761438994,-576.88,0.00015087,2]
[330762903,1719761439004,-1792.25,0.00015087,2]
[330762905,1719761439014,-5308.36,0.00015087,2]
[330762907,1719761439024,-7923.08,0.00015087,2]
[330762909,1719761439034,-4063.57,0.00015087,2]
[330762911,1719761439045,-784.09,0.00015087,2]
[330762914,1719761439055,-715.86,0.00015087,2]
[330762916,1719761439066,-3076.08,0.00015087,2]
[330762918,1719761439076,-606.62,0.00015087,2]
[330762920,1719761439087,-2789.47297127,0.00015087,2]
[330762922,1719761439099,-2577.99516951,0.00015087,2]
[330762924,1719761439113,-4817.23185922,0.00015087,2]
[330762926,1719761439124,-24705.97,0.00015087,2]
[330762928,1719761439135,-500.0,0.00015087,2]
[330762930,1719761439145,-952.67,0.00015087,2]
[330762932,1719761439156,-1061.5,0.00015087,2]
[330762934,1719761439166,-1254.23,0.00015087,2]
[330762936,1719761439176,-11591.3,0.00015087,2]
[330762938,1719761439186,-4245.43931343,0.00015087,2]
[330762940,1719761439197,-136910.14585329,0.00015088,2]
[330762942,1719761439207,-500.0,0.00015088,2]
[330762944,1719761439216,-500.0,0.00015088,2]
[330762946,1719761439227,-2695.97,0.00015088,2]
[330762948,1719761439236,-500.0,0.00015088,2]
[330762950,1719761439246,-500.0,0.00015088,2]
[330762952,1719761439257,-500.0,0.00015088,2]
[330762954,1719761439267,-552.43,0.00015088,2]
[330762956,1719761439277,-500.0,0.00015088,2]
[330762958,1719761439286,-3412.34,0.00015088,2]
[330762960,1719761439296,-210.84684265,0.00015088,2]
[330762962,1719761439306,-683.42,0.00015088,2]
[330762964,1719761439315,-500.0,0.00015088,2]
[330762966,1719761439325,-619.01,0.00015088,2]
[330762968,1719761439334,-500.0,0.00015088,2]
[330762970,1719761439345,-668.54,0.00015088,2]
[330762972,1719761439356,-501.72680499,0.00015088,2]
[330762974,1719761439366,-518.6968974,0.00015088,2]
[330762976,1719761439377,-3107.24,0.00015088,2]
[330762978,1719761439387,-501.00203503,0.00015088,2]
[330762980,1719761439396,-3758.57,0.00015088,2]
[330762982,1719761439406,-515.09824929,0.00015088,2]
[330762984,1719761439415,-991.11,0.00015088,2]
[330762986,1719761439426,-500.0,0.00015088,2]
[330762988,1719761439435,-500.0,0.00015088,2]
[330762990,1719761439445,-500.0,0.00015088,2]
[330762992,1719761439455,-1234.43,0.00015088,2]
[330762994,1719761439464,-501.5096367,0.00015088,2]
[330762996,1719761439474,-1964.52,0.00015088,2]
[330762998,1719761439484,-855.91,0.00015088,2]
[330763000,1719761439494,-500.0,0.00015088,2]
[330763002,1719761439503,-500.0,0.00015088,2]
[330763004,1719761439513,-500.0,0.00015088,2]
[330763006,1719761439522,-1910.23,0.00015088,2]
[330763008,1719761439532,-500.0,0.00015088,2]
[330763010,1719761439543,-239.08603204,0.00015088,2]
[330763012,1719761439554,-500.0,0.00015088,2]
[330763014,1719761439564,-500.0,0.00015088,2]
[330763017,1719761439574,-550.02769491,0.00015088,2]
[330763019,1719761439583,-500.0,0.00015088,2]
[330763021,1719761439592,-517.27090328,0.00015088,2]
[330763023,1719761439602,-500.0,0.00015088,2]
[330763025,1719761439611,-1003.83,0.00015088,2]
[330763027,1719761439621,-715.15,0.00015088,2]
[330763028,1719761439631,-1318.82,0.00015088,2]
[330763030,1719761439640,-575.35,0.00015088,2]
[330763032,1719761439650,-510.23074069,0.00015088,2]
[330763033,1719761439660,-1057.87,0.00015088,2]
[330763034,1719761439670,-500.0,0.00015088,2]
[330763035,1719761439679,-818.97,0.00015088,2]
[330763036,1719761439689,-500.0,0.00015088,2]
[330763037,1719761439699,-910.05,0.00015088,2]
[330763038,1719761439709,-579.75,0.00015088,2]
[330763039,1719761439719,-500.0,0.00015088,2]
[330763040,1719761439728,-500.0,0.00015088,2]
[330763041,1719761439738,-1067.42,0.00015088,2]
[330763042,1719761439748,-454.45678879,0.00015088,2]
[330763043,1719761439757,-1740.4,0.00015088,2]
[330763044,1719761439767,-500.0,0.00015088,2]
[330763045,1719761439777,-560.52,0.00015088,2]
[330763046,1719761439786,-3595.17,0.00015088,2]
[330763047,1719761439796,-506.29147008,0.00015088,2]
[330763048,1719761439807,-500.0,0.00015088,2]
[330763049,1719761439817,-500.0,0.00015088,2]